[Event "Early-Titled-Tuesday-Blitz-August-29-2023"]
[Site "Chess.com"]
[Date "2023.08.29"]
[Round "3"]
[White "Genghis_K"]
[Black "Ural_bogatyr"]
[Result "1-0"]
[WhiteElo "2893"]
[BlackElo "2579"]
[TimeControl "180+1"]
[EndTime "8:28:49 PDT"]
[Termination "Genghis_K won on time"]

1. e4 {[%clk 0:02:37.7]} 1... e5 {[%clk 0:02:59.3]} 2. Nf3 {[%clk 0:02:36.8]}
2... Nc6 {[%clk 0:02:59.4]} 3. d4 {[%clk 0:02:36.5]} 3... exd4 {[%clk
0:02:59.3]} 4. Nxd4 {[%clk 0:02:37.4]} 4... Nf6 {[%clk 0:02:59.6]} 5. Nxc6
{[%clk 0:02:37.5]} 5... bxc6 {[%clk 0:02:59.8]} 6. Bd3 {[%clk 0:02:38.3]} 6...
d5 {[%clk 0:02:59.8]} 7. exd5 {[%clk 0:02:38.3]} 7... cxd5 {[%clk 0:03:00.7]} 8.
O-O {[%clk 0:02:39.1]} 8... Be7 {[%clk 0:02:58.1]} 9. c4 {[%clk 0:02:38.3]} 9...
d4 {[%clk 0:02:43.9]} 10. Nd2 {[%clk 0:02:16]} 10... O-O {[%clk 0:02:32.4]} 11.
Ne4 {[%clk 0:02:16.3]} 11... Bb7 {[%clk 0:02:30.4]} 12. Nxf6+ {[%clk 0:02:13]}
12... Bxf6 {[%clk 0:02:31.3]} 13. b4 {[%clk 0:02:13.7]} 13... Re8 {[%clk
0:02:23.5]} 14. Bf4 {[%clk 0:02:06.8]} 14... a5 {[%clk 0:01:59.6]} 15. b5 {[%clk
0:02:02.4]} 15... Qe7 {[%clk 0:01:49.2]} 16. Re1 {[%clk 0:01:59.4]} 16... Qc5
{[%clk 0:01:48.6]} 17. Qg4 {[%clk 0:01:52.1]} 17... g6 {[%clk 0:01:37.8]} 18.
Qd7 {[%clk 0:01:50]} 18... Rxe1+ {[%clk 0:01:31]} 19. Rxe1 {[%clk 0:01:50.9]}
19... Qb4 {[%clk 0:01:27.9]} 20. Rd1 {[%clk 0:01:01.3]} 20... Qa4 {[%clk
0:00:59.1]} 21. Rd2 {[%clk 0:00:55.6]} 21... Qa3 {[%clk 0:00:58.9]} 22. Qxc7
{[%clk 0:00:43.5]} 22... Be4 {[%clk 0:00:55.3]} 23. Bf1 {[%clk 0:00:38.1]} 23...
Qc3 {[%clk 0:00:29.1]} 24. b6 {[%clk 0:00:27.7]} 24... Qb4 {[%clk 0:00:12.9]}
25. c5 {[%clk 0:00:18]} 25... g5 {[%clk 0:00:12.5]} 26. c6 {[%clk 0:00:13.1]}
26... gxf4 {[%clk 0:00:11.9]} 27. b7 {[%clk 0:00:13.8]} 27... Re8 {[%clk
0:00:09]} 28. Re2 {[%clk 0:00:10.4]} 28... Be5 {[%clk 0:00:03.5]} 29. Qd7 {[%clk
0:00:08.8]} 29... Bxc6 {[%clk 0:00:02.3]} 30. Qxc6 {[%clk 0:00:07.4]} 30... f6
{[%clk 0:00:01.9]} 31. Qxe8+ {[%clk 0:00:07.6]} 1-0

[Event "Early-Titled-Tuesday-Blitz-August-29-2023"]
[Site "Chess.com"]
[Date "2023.08.29"]
[Round "3"]
[White "Alexander_Moskalenko"]
[Black "FARIZA2018"]
[Result "1-0"]
[WhiteElo "2848"]
[BlackElo "2507"]
[TimeControl "180+1"]
[EndTime "8:28:53 PDT"]
[Termination "Alexander_Moskalenko won by resignation"]

1. d4 {[%clk 0:03:00.9]} 1... Nf6 {[%clk 0:03:00.1]} 2. Bg5 {[%clk 0:03:01.1]}
2... Ne4 {[%clk 0:02:59.9]} 3. h4 {[%clk 0:03:00.7]} 3... h6 {[%clk 0:02:56.3]}
4. Bf4 {[%clk 0:02:59.4]} 4... d5 {[%clk 0:02:56.5]} 5. Nd2 {[%clk 0:02:58.1]}
5... Nxd2 {[%clk 0:02:56.2]} 6. Qxd2 {[%clk 0:02:59]} 6... Bf5 {[%clk
0:02:55.8]} 7. f3 {[%clk 0:02:58.9]} 7... c6 {[%clk 0:02:49.6]} 8. O-O-O {[%clk
0:02:55.5]} 8... e6 {[%clk 0:02:49.4]} 9. g4 {[%clk 0:02:54.4]} 9... Bh7 {[%clk
0:02:49.3]} 10. g5 {[%clk 0:02:49.7]} 10... h5 {[%clk 0:02:48.3]} 11. e3 {[%clk
0:02:45.8]} 11... Bd6 {[%clk 0:02:47.4]} 12. Ne2 {[%clk 0:02:42.6]} 12... Na6
{[%clk 0:02:42.2]} 13. Bxd6 {[%clk 0:02:39.1]} 13... Qxd6 {[%clk 0:02:42.1]} 14.
Nf4 {[%clk 0:02:39.6]} 14... Nc7 {[%clk 0:02:38.5]} 15. Nxh5 {[%clk 0:02:38.2]}
15... O-O-O {[%clk 0:02:27.2]} 16. Nxg7 {[%clk 0:02:09.1]} 16... Rdg8 {[%clk
0:02:19.8]} 17. Nh5 {[%clk 0:02:07.7]} 17... Bxc2 {[%clk 0:02:19.5]} 18. Qxc2
{[%clk 0:02:06.2]} 18... Rxh5 {[%clk 0:02:19.3]} 19. f4 {[%clk 0:02:06.4]} 19...
Rgh8 {[%clk 0:02:18.9]} 20. Qf2 {[%clk 0:02:01.9]} 20... c5 {[%clk 0:02:06.6]}
21. Be2 {[%clk 0:02:01.9]} 21... R5h7 {[%clk 0:02:06.3]} 22. dxc5 {[%clk
0:01:59.4]} 22... Qxc5+ {[%clk 0:02:06.4]} 23. Kb1 {[%clk 0:01:59.5]} 23... Kb8
{[%clk 0:02:06.6]} 24. Bd3 {[%clk 0:01:58.5]} 24... Rh5 {[%clk 0:02:05.7]} 25.
Be2 {[%clk 0:01:59]} 25... R5h7 {[%clk 0:02:05.6]} 26. h5 {[%clk 0:01:59.6]}
26... Rg7 {[%clk 0:01:56.7]} 27. h6 {[%clk 0:01:59.1]} 27... Rgg8 {[%clk
0:01:54.8]} 28. Bd3 {[%clk 0:02:00]} 28... Ne8 {[%clk 0:01:34.2]} 29. Rc1 {[%clk
0:01:35.7]} 29... Qb6 {[%clk 0:01:33.3]} 30. Qc2 {[%clk 0:01:36.3]} 30... Nd6
{[%clk 0:01:32.5]} 31. h7 {[%clk 0:01:25.9]} 31... Rc8 {[%clk 0:01:24.8]} 32.
Qd2 {[%clk 0:01:19.1]} 32... Rxc1+ {[%clk 0:01:07.1]} 33. Qxc1 {[%clk
0:01:18.9]} 33... a6 {[%clk 0:01:02]} 34. Qc3 {[%clk 0:01:17.8]} 34... Qd8
{[%clk 0:00:59.4]} 35. Qe5 {[%clk 0:01:13.2]} 35... Ka8 {[%clk 0:00:57.6]} 36.
Rc1 {[%clk 0:01:12.4]} 36... Nc4 {[%clk 0:00:41.2]} 37. Qd4 {[%clk 0:01:12.6]}
37... Nd6 {[%clk 0:00:38.4]} 38. a3 {[%clk 0:01:11.5]} 38... Nf5 {[%clk
0:00:37.6]} 39. Bxf5 {[%clk 0:01:06.4]} 39... exf5 {[%clk 0:00:37.7]} 40. Qg7
{[%clk 0:00:59.8]} 40... Qe8 {[%clk 0:00:29.3]} 41. Ka1 {[%clk 0:00:47.1]} 41...
Kb8 {[%clk 0:00:28.6]} 42. g6 {[%clk 0:00:42.6]} 42... fxg6 {[%clk 0:00:18.2]}
43. Rc7 {[%clk 0:00:42.1]} 43... Ka8 {[%clk 0:00:06.2]} 44. Rxb7 {[%clk
0:00:42.3]} 44... Qc8 {[%clk 0:00:05.9]} 45. Rc7 {[%clk 0:00:40.7]} 45... Qb8
{[%clk 0:00:05.9]} 46. Ra7+ {[%clk 0:00:40.1]} 1-0

[Event "Early-Titled-Tuesday-Blitz-August-29-2023"]
[Site "Chess.com"]
[Date "2023.08.29"]
[Round "3"]
[White "Agibileg"]
[Black "whiteglovethief"]
[Result "1-0"]
[WhiteElo "2610"]
[BlackElo "2423"]
[TimeControl "180+1"]
[EndTime "8:28:53 PDT"]
[Termination "Agibileg won by resignation"]

1. d4 {[%clk 0:03:00.9]} 1... d5 {[%clk 0:02:58.2]} 2. c4 {[%clk 0:03:01.8]}
2... e6 {[%clk 0:02:57.7]} 3. Nc3 {[%clk 0:02:59.7]} 3... h6 {[%clk 0:02:57.7]}
4. Nf3 {[%clk 0:02:53]} 4... Nf6 {[%clk 0:02:57.3]} 5. cxd5 {[%clk 0:02:52.3]}
5... exd5 {[%clk 0:02:56.4]} 6. Bf4 {[%clk 0:02:52.8]} 6... Bd6 {[%clk
0:02:55.8]} 7. Ne5 {[%clk 0:02:48.6]} 7... c5 {[%clk 0:02:51.8]} 8. e3 {[%clk
0:02:48.5]} 8... cxd4 {[%clk 0:02:51.5]} 9. exd4 {[%clk 0:02:48.4]} 9... O-O
{[%clk 0:02:51.2]} 10. Bd3 {[%clk 0:02:46.6]} 10... Nc6 {[%clk 0:02:51.1]} 11.
O-O {[%clk 0:02:45.4]} 11... Nxd4 {[%clk 0:02:48.2]} 12. Rc1 {[%clk 0:02:28.9]}
12... Nc6 {[%clk 0:02:42.7]} 13. Nxc6 {[%clk 0:02:15.7]} 13... bxc6 {[%clk
0:02:43.6]} 14. Bxd6 {[%clk 0:02:16.3]} 14... Qxd6 {[%clk 0:02:43.7]} 15. Na4
{[%clk 0:02:17.2]} 15... Bg4 {[%clk 0:02:35]} 16. Qc2 {[%clk 0:02:15.6]} 16...
Rac8 {[%clk 0:02:33]} 17. Nc5 {[%clk 0:02:13.4]} 17... Nd7 {[%clk 0:02:26.4]}
18. h3 {[%clk 0:02:11.1]} 18... Nxc5 {[%clk 0:02:24.2]} 19. Qxc5 {[%clk
0:02:11.7]} 19... Qxc5 {[%clk 0:02:22.3]} 20. Rxc5 {[%clk 0:02:12.6]} 20... Bd7
{[%clk 0:02:22.4]} 21. Rfc1 {[%clk 0:02:11.1]} 21... Rfe8 {[%clk 0:02:20.8]} 22.
b4 {[%clk 0:02:03.9]} 22... Kf8 {[%clk 0:02:07.8]} 23. Kf1 {[%clk 0:01:56.4]}
23... Ke7 {[%clk 0:01:57.4]} 24. Ra5 {[%clk 0:01:56.4]} 24... Ra8 {[%clk
0:01:57.1]} 25. Ba6 {[%clk 0:01:53.5]} 25... Reb8 {[%clk 0:01:53]} 26. a3 {[%clk
0:01:51.9]} 26... Kd6 {[%clk 0:01:53.2]} 27. Ke2 {[%clk 0:01:52]} 27... Re8+
{[%clk 0:01:47.8]} 28. Kd3 {[%clk 0:01:47.8]} 28... Rab8 {[%clk 0:01:43.4]} 29.
f3 {[%clk 0:01:45.5]} 29... Re7 {[%clk 0:01:39.9]} 30. Kd4 {[%clk 0:01:44.2]}
30... Bc8 {[%clk 0:01:34.6]} 31. Bxc8 {[%clk 0:01:34.5]} 31... Rxc8 {[%clk
0:01:35.5]} 32. Rxd5+ {[%clk 0:01:34.9]} 32... cxd5 {[%clk 0:01:31.2]} 33. Rxc8
{[%clk 0:01:35.8]} 33... Re2 {[%clk 0:01:30.5]} 34. Ra8 {[%clk 0:01:31.5]} 34...
Rd2+ {[%clk 0:01:25.2]} 35. Ke3 {[%clk 0:01:31.3]} 35... Rxg2 {[%clk 0:01:25.4]}
36. Rxa7 {[%clk 0:01:30.7]} 36... f5 {[%clk 0:01:22.9]} 37. h4 {[%clk 0:01:29]}
37... g5 {[%clk 0:01:22.1]} 38. hxg5 {[%clk 0:01:26.3]} 38... hxg5 {[%clk
0:01:23]} 39. b5 {[%clk 0:01:25.9]} 39... Kc5 {[%clk 0:01:17.5]} 40. a4 {[%clk
0:01:26.2]} 40... Ra2 {[%clk 0:01:09.9]} 41. Rc7+ {[%clk 0:01:20.8]} 41... Kd6
{[%clk 0:01:09.6]} 42. Rc6+ {[%clk 0:01:19.3]} 42... Ke5 {[%clk 0:01:10.2]} 43.
Ra6 {[%clk 0:01:19.5]} 43... Ra3+ {[%clk 0:01:09.5]} 44. Ke2 {[%clk 0:01:17.8]}
44... Kf4 {[%clk 0:01:06.6]} 45. b6 {[%clk 0:01:17.6]} 45... Ra2+ {[%clk
0:01:07.2]} 46. Kd3 {[%clk 0:01:13.3]} 46... Rb2 {[%clk 0:01:07.2]} 47. a5
{[%clk 0:01:11.1]} 47... Kxf3 {[%clk 0:01:07.7]} 48. Ra7 {[%clk 0:01:05.8]}
48... g4 {[%clk 0:01:08.1]} 49. Rf7 {[%clk 0:01:03.7]} 49... f4 {[%clk 0:00:59]}
50. b7 {[%clk 0:01:03.5]} 50... g3 {[%clk 0:00:57.6]} 51. a6 {[%clk 0:01:03.7]}
51... g2 {[%clk 0:00:57.3]} 52. Rg7 {[%clk 0:01:04.2]} 52... Rb6 {[%clk
0:00:55.7]} 53. Rxg2 {[%clk 0:00:59.3]} 53... Kxg2 {[%clk 0:00:54.4]} 54. a7
{[%clk 0:00:59.3]} 54... Rxb7 {[%clk 0:00:52.2]} 55. a8=Q {[%clk 0:00:59.5]}
55... Rb3+ {[%clk 0:00:45.6]} 56. Kc2 {[%clk 0:00:57.2]} 56... Rb6 {[%clk
0:00:26.7]} 57. Qg8+ {[%clk 0:00:55.3]} 57... Kf1 {[%clk 0:00:25.3]} 58. Qxd5
{[%clk 0:00:52.7]} 1-0

[Event "Early-Titled-Tuesday-Blitz-August-29-2023"]
[Site "Chess.com"]
[Date "2023.08.29"]
[Round "3"]
[White "jinbojinbo"]
[Black "Rsnr"]
[Result "0-1"]
[WhiteElo "2691"]
[BlackElo "2907"]
[TimeControl "180+1"]
[EndTime "8:28:54 PDT"]
[Termination "Rsnr won by checkmate"]

1. c4 {[%clk 0:03:00.9]} 1... c6 {[%clk 0:02:57.7]} 2. Nf3 {[%clk 0:02:58.3]}
2... d5 {[%clk 0:02:58.6]} 3. e3 {[%clk 0:02:58.4]} 3... Nf6 {[%clk 0:02:59.2]}
4. b3 {[%clk 0:02:57.7]} 4... e6 {[%clk 0:02:54.6]} 5. Bb2 {[%clk 0:02:57.7]}
5... Bd6 {[%clk 0:02:55.5]} 6. Nc3 {[%clk 0:02:53.2]} 6... O-O {[%clk
0:02:54.8]} 7. Be2 {[%clk 0:02:52.8]} 7... e5 {[%clk 0:02:54.1]} 8. cxd5 {[%clk
0:02:44.7]} 8... cxd5 {[%clk 0:02:54.8]} 9. O-O {[%clk 0:02:38.9]} 9... Nc6
{[%clk 0:02:53.4]} 10. a3 {[%clk 0:02:33.8]} 10... e4 {[%clk 0:02:50.8]} 11. Nd4
{[%clk 0:02:29.5]} 11... Nxd4 {[%clk 0:02:50.4]} 12. exd4 {[%clk 0:02:30.4]}
12... Bb8 {[%clk 0:02:44]} 13. Re1 {[%clk 0:02:18.8]} 13... a5 {[%clk 0:02:40]}
14. a4 {[%clk 0:02:17.2]} 14... Qd6 {[%clk 0:02:26.2]} 15. g3 {[%clk 0:02:16.1]}
15... Re8 {[%clk 0:02:25.6]} 16. Nb5 {[%clk 0:02:15.3]} 16... Qe6 {[%clk
0:02:25.3]} 17. Rc1 {[%clk 0:02:12.2]} 17... Qh3 {[%clk 0:02:24.2]} 18. Bf1
{[%clk 0:02:12.2]} 18... Qh6 {[%clk 0:02:23.3]} 19. Bg2 {[%clk 0:02:01.3]} 19...
Bg4 {[%clk 0:02:20.1]} 20. f3 {[%clk 0:02:00.9]} 20... Bf5 {[%clk 0:02:00.8]}
21. fxe4 {[%clk 0:01:46.5]} 21... Ng4 {[%clk 0:01:08.9]} 22. exf5 {[%clk
0:01:18.5]} 22... Rxe1+ {[%clk 0:01:03.6]} 23. Qxe1 {[%clk 0:01:19.4]} 23...
Qxh2+ {[%clk 0:01:03.5]} 24. Kf1 {[%clk 0:01:19.8]} 24... Bxg3 {[%clk
0:01:04.4]} 25. Qe2 {[%clk 0:01:06.6]} 25... Qh5 {[%clk 0:00:57.8]} 26. Bf3
{[%clk 0:00:31.8]} 26... h6 {[%clk 0:00:42.1]} 27. Kg2 {[%clk 0:00:24.5]} 27...
Qh2+ {[%clk 0:00:41.5]} 28. Kf1 {[%clk 0:00:24.7]} 28... Qh4 {[%clk 0:00:29.6]}
29. Kg2 {[%clk 0:00:21.3]} 29... Nf2 {[%clk 0:00:22.2]} 30. Bxd5 {[%clk
0:00:09.5]} 30... Qh3+ {[%clk 0:00:21]} 31. Kg1 {[%clk 0:00:08.4]} 31... Bh2+
{[%clk 0:00:09.6]} 32. Kxf2 {[%clk 0:00:03.7]} 32... Qg3+ {[%clk 0:00:10.2]} 33.
Kf1 {[%clk 0:00:04.2]} 33... Qg1# {[%clk 0:00:10.8]} 0-1

[Event "Early-Titled-Tuesday-Blitz-August-29-2023"]
[Site "Chess.com"]
[Date "2023.08.29"]
[Round "3"]
[White "hurricane7791"]
[Black "aghasiyevkamal"]
[Result "0-1"]
[WhiteElo "2726"]
[BlackElo "2502"]
[TimeControl "180+1"]
[EndTime "8:28:56 PDT"]
[Termination "aghasiyevkamal won by resignation"]

1. d4 {[%clk 0:03:00.2]} 1... Nf6 {[%clk 0:02:54.7]} 2. c4 {[%clk 0:03:00.3]}
2... e6 {[%clk 0:02:54.7]} 3. Nc3 {[%clk 0:03:00.6]} 3... d5 {[%clk 0:02:51.9]}
4. cxd5 {[%clk 0:03:00.7]} 4... exd5 {[%clk 0:02:50.2]} 5. Bg5 {[%clk
0:03:00.8]} 5... c6 {[%clk 0:02:50.5]} 6. e3 {[%clk 0:03:01.4]} 6... Nbd7 {[%clk
0:02:50.6]} 7. Bd3 {[%clk 0:03:01.6]} 7... Be7 {[%clk 0:02:50.7]} 8. Qc2 {[%clk
0:03:02.2]} 8... h6 {[%clk 0:02:50.8]} 9. Bh4 {[%clk 0:02:59.9]} 9... Nh5 {[%clk
0:02:50.6]} 10. Bg3 {[%clk 0:02:56.8]} 10... Nxg3 {[%clk 0:02:46.2]} 11. hxg3
{[%clk 0:02:57.7]} 11... Nf6 {[%clk 0:02:44.8]} 12. Nf3 {[%clk 0:02:58]} 12...
Be6 {[%clk 0:02:37.3]} 13. Ne5 {[%clk 0:02:57.9]} 13... O-O {[%clk 0:02:33.2]}
14. f4 {[%clk 0:02:57.8]} 14... c5 {[%clk 0:02:33.3]} 15. O-O-O {[%clk 0:02:55]}
15... Rc8 {[%clk 0:02:32.4]} 16. Kb1 {[%clk 0:02:49.5]} 16... cxd4 {[%clk
0:02:29.8]} 17. exd4 {[%clk 0:02:50.4]} 17... Bb4 {[%clk 0:02:30.1]} 18. Rc1
{[%clk 0:02:36.4]} 18... Ne4 {[%clk 0:02:24.6]} 19. Bxe4 {[%clk 0:02:35.8]}
19... dxe4 {[%clk 0:02:24.9]} 20. Qxe4 {[%clk 0:02:26.6]} 20... Bxc3 {[%clk
0:02:17.9]} 21. bxc3 {[%clk 0:02:26.4]} 21... Qa5 {[%clk 0:02:06.3]} 22. c4
{[%clk 0:02:26.3]} 22... Qb4+ {[%clk 0:01:58.2]} 23. Ka1 {[%clk 0:02:26.4]}
23... Bxc4 {[%clk 0:01:58.4]} 24. d5 {[%clk 0:02:24.1]} 24... b5 {[%clk
0:01:51.8]} 25. Rhd1 {[%clk 0:02:14.3]} 25... Qa4 {[%clk 0:01:24.3]} 26. Nxc4
{[%clk 0:02:13.8]} 26... Rxc4 {[%clk 0:01:24.4]} 27. Qe2 {[%clk 0:01:57.8]}
27... Rxc1+ {[%clk 0:01:17.2]} 28. Rxc1 {[%clk 0:01:57.7]} 28... Qd4+ {[%clk
0:01:17.8]} 29. Qb2 {[%clk 0:01:53.3]} 29... Qxd5 {[%clk 0:01:15.3]} 30. g4
{[%clk 0:01:51]} 30... Re8 {[%clk 0:01:09]} 31. g3 {[%clk 0:01:46.4]} 31... Qd3
{[%clk 0:01:05.4]} 32. Qc3 {[%clk 0:01:45.5]} 32... Qe2 {[%clk 0:00:59.1]} 33.
Rc2 {[%clk 0:01:41.4]} 33... Qxg4 {[%clk 0:00:55.5]} 34. Kb2 {[%clk 0:01:40.6]}
34... Qd1 {[%clk 0:00:45.3]} 35. Rd2 {[%clk 0:01:33.5]} 35... Qe1 {[%clk
0:00:35.2]} 36. Qd3 {[%clk 0:01:30.2]} 36... Rc8 {[%clk 0:00:29.8]} 37. Rd1
{[%clk 0:01:26]} 37... Qb4+ {[%clk 0:00:26.4]} 38. Qb3 {[%clk 0:01:21.8]} 38...
Qc5 {[%clk 0:00:22.2]} 39. Qd3 {[%clk 0:01:14.8]} 39... a5 {[%clk 0:00:21.4]}
40. Qd2 {[%clk 0:01:09.6]} 40... b4 {[%clk 0:00:20.5]} 41. Qd3 {[%clk
0:01:09.4]} 41... a4 {[%clk 0:00:20.5]} 42. Qd2 {[%clk 0:01:03.6]} 42... Qc4
{[%clk 0:00:19.3]} 43. Qd3 {[%clk 0:01:01.6]} 43... Qc5 {[%clk 0:00:17.5]} 44.
Qd2 {[%clk 0:01:00.5]} 44... h5 {[%clk 0:00:17.2]} 45. Qd3 {[%clk 0:01:00.2]}
45... a3+ {[%clk 0:00:15.1]} 46. Kb3 {[%clk 0:00:57.6]} 46... Qc3+ {[%clk
0:00:13.9]} 47. Qxc3 {[%clk 0:00:57.9]} 47... Rxc3+ {[%clk 0:00:14.8]} 48. Kxb4
{[%clk 0:00:58.8]} 48... Rxg3 {[%clk 0:00:15.3]} 49. Rh1 {[%clk 0:00:57.7]}
49... g6 {[%clk 0:00:15.1]} 50. Re1 {[%clk 0:00:55.6]} 50... Kg7 {[%clk
0:00:15.1]} 51. Re5 {[%clk 0:00:54.8]} 51... h4 {[%clk 0:00:15.2]} 52. f5 {[%clk
0:00:55.1]} 52... g5 {[%clk 0:00:14.6]} 53. Rb5 {[%clk 0:00:51]} 53... h3 {[%clk
0:00:14.6]} 0-1

[Event "Early-Titled-Tuesday-Blitz-August-29-2023"]
[Site "Chess.com"]
[Date "2023.08.29"]
[Round "3"]
[White "Ducke13"]
[Black "Sadykov_Ramil"]
[Result "0-1"]
[WhiteElo "2428"]
[BlackElo "2620"]
[TimeControl "180+1"]
[EndTime "8:28:56 PDT"]
[Termination "Sadykov_Ramil won by checkmate"]

1. d4 {[%clk 0:03:00.9]} 1... Nf6 {[%clk 0:02:59.6]} 2. g3 {[%clk 0:03:01.3]}
2... d5 {[%clk 0:02:56.8]} 3. Nf3 {[%clk 0:03:00.6]} 3... Bf5 {[%clk 0:02:51.5]}
4. c4 {[%clk 0:03:01]} 4... c6 {[%clk 0:02:51.2]} 5. Nc3 {[%clk 0:03:01.6]} 5...
e6 {[%clk 0:02:48.7]} 6. Nh4 {[%clk 0:03:02.1]} 6... Be4 {[%clk 0:02:47.8]} 7.
f3 {[%clk 0:03:01.8]} 7... Bg6 {[%clk 0:02:45.8]} 8. Qb3 {[%clk 0:03:02.2]} 8...
Qb6 {[%clk 0:02:43.4]} 9. Nxg6 {[%clk 0:02:42.8]} 9... hxg6 {[%clk 0:02:41.1]}
10. c5 {[%clk 0:02:43]} 10... Qc7 {[%clk 0:02:40.9]} 11. e4 {[%clk 0:02:38.1]}
11... dxe4 {[%clk 0:02:25.5]} 12. Bf4 {[%clk 0:02:38]} 12... Qc8 {[%clk
0:02:22]} 13. fxe4 {[%clk 0:02:31.1]} 13... Nbd7 {[%clk 0:02:20.2]} 14. Bd6
{[%clk 0:01:50.5]} 14... Bxd6 {[%clk 0:02:05]} 15. cxd6 {[%clk 0:01:51.4]} 15...
e5 {[%clk 0:02:05.4]} 16. O-O-O {[%clk 0:01:28.4]} 16... b5 {[%clk 0:01:34.5]}
17. Kb1 {[%clk 0:01:07.9]} 17... a5 {[%clk 0:01:32.1]} 18. d5 {[%clk 0:00:48.6]}
18... b4 {[%clk 0:01:27.3]} 19. dxc6 {[%clk 0:00:46.7]} 19... Qxc6 {[%clk
0:01:28.2]} 20. Bb5 {[%clk 0:00:35.6]} 20... Qb7 {[%clk 0:01:04.8]} 21. Nd5
{[%clk 0:00:34.8]} 21... O-O {[%clk 0:00:56.6]} 22. Bxd7 {[%clk 0:00:27.9]}
22... Qxd7 {[%clk 0:00:35.9]} 23. g4 {[%clk 0:00:20.6]} 23... Qxg4 {[%clk
0:00:22.1]} 24. Nxf6+ {[%clk 0:00:03.3]} 24... gxf6 {[%clk 0:00:23]} 25. Qe3
{[%clk 0:00:03]} 25... Rfd8 {[%clk 0:00:21.2]} 26. h4 {[%clk 0:00:02.8]} 26...
Ra6 {[%clk 0:00:18.6]} 27. h5 {[%clk 0:00:02.9]} 27... Raxd6 {[%clk 0:00:15.4]}
28. Rxd6 {[%clk 0:00:02.9]} 28... Rxd6 {[%clk 0:00:16.3]} 29. Rc1 {[%clk
0:00:01.3]} 29... Rd1 {[%clk 0:00:14.7]} 30. Qc5 {[%clk 0:00:01.4]} 30... Qxe4+
{[%clk 0:00:12.2]} 31. Ka1 {[%clk 0:00:01.7]} 31... Rxc1+ {[%clk 0:00:11.1]} 32.
Qxc1 {[%clk 0:00:02.6]} 32... gxh5 {[%clk 0:00:11.7]} 33. Qg1+ {[%clk
0:00:02.5]} 33... Kh7 {[%clk 0:00:11.6]} 34. Qh1 {[%clk 0:00:02.3]} 34... Qxh1#
{[%clk 0:00:11.4]} 0-1

[Event "Early-Titled-Tuesday-Blitz-August-29-2023"]
[Site "Chess.com"]
[Date "2023.08.29"]
[Round "3"]
[White "nassimzrikem"]
[Black "Dmitry_Konenkin"]
[Result "0-1"]
[WhiteElo "2094"]
[BlackElo "2385"]
[TimeControl "180+1"]
[EndTime "8:28:58 PDT"]
[Termination "Dmitry_Konenkin won by resignation"]

1. d4 {[%clk 0:03:00.9]} 1... d6 {[%clk 0:02:59.6]} 2. e4 {[%clk 0:03:00.3]}
2... Nf6 {[%clk 0:02:59.6]} 3. Nc3 {[%clk 0:03:00.3]} 3... e5 {[%clk 0:03:00.2]}
4. Nf3 {[%clk 0:02:58.8]} 4... Nbd7 {[%clk 0:02:59.8]} 5. Rg1 {[%clk 0:02:59.1]}
5... g6 {[%clk 0:02:58.1]} 6. g4 {[%clk 0:02:57.2]} 6... Bg7 {[%clk 0:02:58.8]}
7. g5 {[%clk 0:02:56.6]} 7... Nh5 {[%clk 0:02:59.3]} 8. d5 {[%clk 0:02:52.2]}
8... O-O {[%clk 0:02:58.1]} 9. Be3 {[%clk 0:02:51.2]} 9... f5 {[%clk 0:02:22.6]}
10. gxf6 {[%clk 0:02:38.2]} 10... Ndxf6 {[%clk 0:02:21.4]} 11. Be2 {[%clk
0:02:37.1]} 11... Nf4 {[%clk 0:02:13.1]} 12. Bxf4 {[%clk 0:02:28.5]} 12... exf4
{[%clk 0:02:13.1]} 13. e5 {[%clk 0:02:26.5]} 13... dxe5 {[%clk 0:02:07.9]} 14.
d6 {[%clk 0:02:12.6]} 14... Qxd6 {[%clk 0:01:59.1]} 15. Bc4+ {[%clk 0:02:10.5]}
15... Kh8 {[%clk 0:01:55.6]} 16. Ng5 {[%clk 0:01:37]} 16... Bf5 {[%clk
0:01:08.7]} 17. Qxd6 {[%clk 0:01:24]} 17... cxd6 {[%clk 0:01:08.8]} 18. O-O-O
{[%clk 0:01:24.4]} 18... Rac8 {[%clk 0:00:44.7]} 19. Nf7+ {[%clk 0:01:20.2]}
19... Rxf7 {[%clk 0:00:45.3]} 20. Bxf7 {[%clk 0:01:19.9]} 20... Bf8 {[%clk
0:00:33.9]} 21. Rd2 {[%clk 0:01:10.3]} 21... Kg7 {[%clk 0:00:32.7]} 22. Bd5
{[%clk 0:00:56]} 22... b6 {[%clk 0:00:29.1]} 23. f3 {[%clk 0:00:54.3]} 23... Be7
{[%clk 0:00:28.2]} 24. Ne4 {[%clk 0:00:52.7]} 24... Nxd5 {[%clk 0:00:20.2]} 25.
Rxd5 {[%clk 0:00:50.3]} 25... Be6 {[%clk 0:00:19.8]} 26. Rd2 {[%clk 0:00:18.6]}
26... d5 {[%clk 0:00:20.3]} 27. Ng5 {[%clk 0:00:18.9]} 27... Bg8 {[%clk
0:00:18.6]} 28. h4 {[%clk 0:00:18]} 28... Bc5 {[%clk 0:00:18.9]} 29. Re1 {[%clk
0:00:17.3]} 29... Be3 {[%clk 0:00:19.3]} 30. Kd1 {[%clk 0:00:09.3]} 30... Bxd2
{[%clk 0:00:18.9]} 31. Kxd2 {[%clk 0:00:09.6]} 31... Re8 {[%clk 0:00:18.6]} 32.
Nh3 {[%clk 0:00:09.4]} 32... Bf7 {[%clk 0:00:17.5]} 33. Nf2 {[%clk 0:00:09.2]}
33... h6 {[%clk 0:00:16.8]} 34. Nd3 {[%clk 0:00:09.6]} 34... Kf6 {[%clk
0:00:16.3]} 35. Nb4 {[%clk 0:00:09.8]} 35... g5 {[%clk 0:00:14.4]} 36. hxg5+
{[%clk 0:00:09.3]} 36... hxg5 {[%clk 0:00:15.3]} 37. Nd3 {[%clk 0:00:09.3]}
37... e4 {[%clk 0:00:14.9]} 38. Nb4 {[%clk 0:00:08.7]} 38... e3+ {[%clk
0:00:15.1]} 39. Kc3 {[%clk 0:00:08.8]} 39... Rc8+ {[%clk 0:00:14.5]} 40. Kd4
{[%clk 0:00:09]} 40... Rc4+ {[%clk 0:00:14.8]} 0-1